bitfinex-derivatives/quotes_ETHF0:USTF0_20240928
["timestamp","ask_amount","ask_price","bid_price","bid_amount"]
[1727504465067,0.4202,2685.8,2685.6,0.37226]
[1727504465464,0.4202,2685.8,2685.6,0.78656]
[1727504466174,0.4202,2685.8,2685.7,1.34]
[1727504466375,0.8689,2686.0,2685.7,1.34]
[1727504466376,0.4356,2686.0,2685.7,1.34]
[1727504466568,3.628,2686.1,2686.0,0.3722]
[1727504466969,3.628,2686.1,2686.0,1.1834]
[1727504467167,0.4202,2686.1,2686.0,1.1834]
[1727504468075,0.4202,2686.1,2686.0,0.8112]
[1727504468277,0.4202,2686.1,2686.0,1.1834]
[1727504469365,0.4202,2686.1,2686.0,0.8112]
[1727504469766,0.4202,2686.1,2686.0,0.417]
[1727504470575,0.4202,2686.1,2686.0,0.7892]
[1727504473067,3.628,2686.1,2685.9,3.858]
[1727504473266,3.628,2686.1,2685.8,0.958]
[1727504473267,3.58001,2686.0,2685.8,0.958]
[1727504473577,4.01491,2686.0,2685.8,0.958]
[1727504474479,3.6427,2686.0,2685.7,3.27224]
[1727504474671,3.6427,2686.0,2685.8,0.958]
[1727504474974,4.0149,2686.0,2685.8,0.958]
[1727504475569,3.6427,2686.0,2685.8,0.958]
[1727504476477,3.6427,2686.0,2685.8,1.33023]
[1727504477266,3.6427,2686.0,2685.9,0.37222]
[1727504477470,3.6427,2686.0,2685.9,1.33022]
[1727504478174,3.6427,2686.0,2685.9,0.958]
[1727504478883,3.6427,2686.0,2685.9,1.33022]
[1727504480374,3.6427,2686.0,2685.9,0.958]
[1727504481374,3.6427,2686.0,2685.9,1.33022]
[1727504482486,3.6427,2686.0,2685.9,0.944]
[1727504484377,3.6427,2686.0,2685.9,1.31622]
[1727504485184,3.2078,2686.0,2685.9,7.93942]
[1727504485375,3.2078,2686.0,2685.9,7.25819393]
[1727504485578,3.2078,2686.0,2685.9,0.944]
[1727504485778,3.6102,2686.0,2685.9,0.944]
[1727504486285,3.6102,2686.0,2685.8,0.37222]
[1727504486486,3.6102,2686.0,2685.9,0.5157]
[1727504488487,3.6102,2686.0,2685.6,0.4143]
[1727504488692,0.37223,2685.9,2685.7,0.944]
[1727504488984,3.58002,2685.9,2685.7,0.944]
[1727504489186,4.55107576,2685.9,2685.7,0.944]
[1727504489384,0.37223,2685.8,2685.5,2.716]
[1727504489586,0.4328,2685.8,2685.5,2.716]
[1727504489783,0.4252,2685.7,2685.5,2.716]
[1727504490291,0.4252,2685.7,2685.5,2.14426]
[1727504490495,0.4252,2685.7,2685.5,3.08826]
[1727504491783,0.4252,2685.7,2685.5,2.716]
[1727504492185,0.4252,2685.7,2685.6,0.37226]
[1727504492991,0.4252,2685.7,2685.6,1.31626]
[1727504494495,0.4252,2685.7,2685.6,0.944]
[1727504494991,1.39625576,2685.7,2685.5,2.14427]
[1727504495191,4.17885576,2685.6,2685.5,0.944]
[1727504495494,4.55111576,2685.6,2685.5,0.944]
[1727504495698,4.17885576,2685.6,2685.5,0.944]
[1727504495895,4.98131576,2685.6,2685.5,0.944]
[1727504496090,3.638,2685.6,2685.5,0.944]
[1727504496795,4.60718764,2685.6,2685.5,0.944]
[1727504497190,3.638,2685.6,2685.5,0.944]
[1727504497390,4.60718764,2685.6,2685.4,2.284]
[1727504497787,3.638,2685.6,2685.4,2.284]
[1727504497986,3.638,2685.6,2685.4,2.65628]
[1727504498385,4.60718764,2685.6,2685.4,2.65628]
[1727504500598,4.60718764,2685.6,2685.4,2.284]
[1727504500793,4.60718764,2685.6,2685.4,2.65628]
[1727504502600,4.60718764,2685.6,2685.4,2.284]
[1727504503096,0.96918764,2685.5,2685.4,2.65629]
[1727504503587,0.96918764,2685.6,2685.4,2.284]
[1727504503789,0.96918764,2685.6,2685.5,0.79197]
[1727504503995,0.96918764,2685.6,2685.5,1.22357]
[1727504504498,0.96918764,2685.6,2685.5,9.25376703]
[1727504504695,0.96918764,2685.7,2685.6,0.37226]
[1727504505002,0.96918764,2685.7,2685.6,1.71226]
[1727504507403,1.45499019,2685.7,2685.6,1.34]
[1727504507602,0.97035484,2685.7,2685.6,1.34]
[1727504508306,1.45499019,2685.8,2685.6,1.34]
[1727504508500,1.45499019,2685.8,2685.7,0.4102]
[1727504508702,1.45557757,2685.8,2685.7,0.4102]
[1727504508900,2.3146155,2685.9,2685.7,0.4102]
[1727504509599,1.9423955,2685.9,2685.7,0.78244]
[1727504509796,1.45573303,2685.8,2685.7,0.78244]
[1727504511002,1.45573303,2685.8,2685.7,0.4102]
[1727504511199,1.45597979,2685.8,2685.7,0.4102]
[1727504511401,1.45597979,2685.8,2685.7,0.78244]
[1727504513303,1.45597979,2685.8,2685.7,0.4102]
[1727504517205,1.45680317,2685.8,2685.7,0.4102]
[1727504517404,1.45678523,2685.8,2685.7,0.4102]
[1727504517702,1.45679621,2685.8,2685.7,0.4102]
[1727504518097,1.9423955,2685.9,2685.7,0.4102]
[1727504518304,1.9423955,2685.8,2685.7,0.4102]
[1727504521005,1.45703122,2685.8,2685.7,0.78244]
[1727504521206,1.45703122,2685.8,2685.7,0.4102]
[1727504521207,1.45706102,2685.8,2685.7,0.4102]
[1727504521411,1.9423955,2685.9,2685.7,0.4102]
[1727504521606,1.45704885,2685.8,2685.7,0.78244]
[1727504521810,1.9423955,2685.9,2685.8,1.34]
[1727504524800,2.3146155,2685.9,2685.7,2.7022]
[1727504525104,0.37223,2685.8,2685.7,2.7022]
[1727504525309,2.7343255,2685.9,2685.7,2.7022]
[1727504525708,1.45606169,2685.8,2685.7,2.7022]
[1727504526010,2.7343255,2685.9,2685.7,2.7022]
[1727504526307,1.45607237,2685.8,2685.7,2.7022]
[1727504526901,1.45607237,2685.8,2685.7,3.07444]
[1727504528601,1.45607237,2685.8,2685.7,4.05052255]
[1727504528910,1.45607237,2685.8,2685.7,3.07444]
[1727504529109,1.45607237,2685.8,2685.7,4.05052255]
[1727504529307,1.45607237,2685.8,2685.7,3.07444]
[1727504530214,1.45607237,2685.8,2685.7,4.05052255]
[1727504530411,1.45607237,2685.8,2685.7,3.07444]
[1727504530618,1.45607237,2685.8,2685.7,2.7022]
[1727504530915,1.45607237,2685.8,2685.7,3.07444]
[1727504532009,1.8288317,2685.8,2685.6,3.26808255]
[1727504532313,0.37224,2685.8,2685.7,4.06046998]
[1727504533315,1.45692216,2685.8,2685.7,5.01246998]
[1727504533516,2.3146255,2685.9,2685.7,5.01246998]
[1727504534617,1.45689541,2685.8,2685.7,5.01246998]
[1727504534814,2.3146255,2685.9,2685.7,5.01246998]
[1727504535515,1.9423955,2685.9,2685.8,1.71223]
[1727504535715,2.3557955,2686.0,2685.8,1.34]
[1727504536118,2.3557955,2686.0,2685.8,2.11072]
[1727504536119,1.4569535,2685.9,2685.8,2.11072]
[1727504536522,0.97131821,2685.9,2685.8,6.81000255]
[1727504536821,1.4569535,2686.0,2685.9,0.37222]
[1727504536822,0.97131821,2686.0,2685.9,0.37222]
[1727504537034,0.97131821,2686.2,2685.9,7.26279445]
[1727504537222,1.40681821,2686.3,2686.2,0.37218]
[1727504537421,0.4355,2686.3,2686.2,0.37218]
[1727504537617,1.40659343,2686.3,2686.2,1.74642844]
[1727504537822,0.97109343,2686.3,2686.2,1.74642844]
[1727504538220,5.09909343,2686.4,2686.3,0.37216]
[1727504538422,0.97109343,2686.4,2686.3,2.66316]
[1727504538925,1.8924535,2686.5,2686.3,2.291]
[1727504539128,0.97077294,2686.4,2686.3,2.291]
[1727504539323,0.97052247,2686.4,2686.3,2.291]
[1727504539718,1.8924535,2686.5,2686.3,2.291]
[1727504539919,1.4569535,2686.4,2686.3,2.291]
[1727504540416,0.97028693,2686.4,2686.3,2.66316]
[1727504541422,0.97012285,2686.4,2686.3,2.66316]
[1727504541617,1.8924535,2686.5,2686.3,2.66316]
[1727504541822,0.97014018,2686.4,2686.3,2.66316]
[1727504542027,0.97014018,2686.4,2686.3,2.291]
[1727504542420,0.97014018,2686.4,2686.3,2.66316]
[1727504542615,0.97014018,2686.4,2686.3,2.291]
[1727504542816,4.6647535,2686.4,2686.3,2.291]
[1727504543019,1.8554535,2686.4,2686.3,2.291]
[1727504543221,1.8554535,2686.4,2685.8,4.67197798]
[1727504543222,0.37218,2686.2,2686.0,0.975]
[1727504543523,5.03506164,2686.1,2686.0,1.34]
[1727504543725,5.84396164,2686.1,2686.0,1.34]
[1727504543925,4.38889,2686.1,2686.0,1.34]
[1727504544227,8.11209,2686.1,2686.0,1.34]
[1727504544622,7.7399,2686.1,2686.0,1.34]
[1727504545024,8.11209,2686.1,2686.0,1.34]
[1727504545423,7.7399,2686.1,2686.0,1.34]
[1727504546232,8.11209,2686.1,2686.0,1.34]
[1727504546529,7.7399,2686.1,2686.0,1.34]
[1727504546723,4.0167,2686.1,2686.0,1.34]
[1727504547729,5.4721347,2686.1,2686.0,1.34]
[1727504548127,4.0167,2686.1,2686.0,1.34]
[1727504548636,5.47216951,2686.1,2686.0,1.34]
[1727504548831,4.0167,2686.1,2686.0,1.7122]
[1727504549026,4.0167,2686.1,2686.0,1.34]
[1727504549233,5.47216951,2686.1,2686.0,1.7122]
[1727504549631,5.47216951,2686.1,2686.0,1.34]
[1727504549929,4.0167,2686.1,2686.0,1.34]
[1727504550533,5.47216951,2686.1,2686.0,1.34]
[1727504550935,4.0167,2686.1,2686.0,1.34]
[1727504551442,5.07796951,2686.1,2686.0,1.34]
[1727504552141,3.6225,2686.1,2686.0,1.7122]
[1727504552435,4.59295088,2686.1,2686.0,1.7122]
[1727504552630,4.59295088,2686.1,2686.0,2.1484]
[1727504552931,1.38515088,2686.1,2686.0,2.1484]
[1727504553232,1.38515088,2686.1,2686.0,1.7762]
[1727504553931,0.97045088,2686.1,2686.0,1.7762]
[1727504554137,0.97045088,2686.1,2686.0,2.1484]
[1727504554731,0.97045088,2686.1,2686.0,0.4362]
[1727504554945,0.97046986,2686.1,2686.0,1.7762]
[1727504555137,0.97046986,2686.1,2686.0,2.5633]
[1727504558339,0.97046986,2686.1,2686.0,2.1911]
[1727504559738,0.97046986,2686.1,2686.0,3.1661]
[1727504561442,1.82764951,2686.2,2686.0,3.1661]
[1727504561640,1.34296539,2686.1,2686.0,2.1911]
[1727504561943,1.45546951,2686.1,2686.0,3.1661]
[1727504562139,2.25645951,2686.1,2686.0,2.315]
[1727504562840,1.88426951,2686.1,2686.0,2.315]
[1727504563236,2.25645951,2686.1,2686.0,2.315]
[1727504563542,2.7433855,2686.1,2686.0,2.315]
[1727504564042,6.4665855,2686.1,2686.0,1.34]
[1727504564434,6.4658985,2686.1,2686.0,1.34]
[1727504565944,6.0937085,2686.1,2686.0,1.34]
[1727504566948,6.4658985,2686.1,2686.0,1.34]
[1727504567655,6.0937085,2686.1,2686.0,1.34]
[1727504568850,2.3705085,2686.1,2686.0,1.34]
[1727504570555,0.4288,2686.1,2686.0,1.34]
[1727504571352,0.80099,2686.1,2686.0,1.34]
[1727504572257,0.80097,2686.1,2686.0,1.34]
[1727504572755,1.88534608,2686.1,2686.0,1.34]
[1727504573253,1.88534608,2686.1,2686.0,1.7368]
[1727504574353,1.45658657,2686.1,2686.0,1.7368]
[1727504574558,1.45658657,2686.1,2686.0,2.1742]
[1727504576264,2.7315585,2686.2,2686.0,2.1742]
[1727504576462,1.45666147,2686.1,2686.0,2.54637]
[1727504576762,1.45666104,2686.1,2686.0,2.1742]
[1727504577155,2.7315585,2686.2,2686.0,2.1742]
[1727504577564,0.37215,2686.1,2686.0,2.1742]
[1727504577863,0.37215,2686.1,2686.0,1.34]
[1727504578059,0.80345,2686.1,2686.0,1.34]
[1727504578458,0.80345,2686.1,2685.7,0.97574844]
[1727504578459,0.37219,2685.8,2685.7,0.97574844]
[1727504578654,0.37219,2685.8,2685.6,0.4]
[1727504578655,1.94227113,2685.8,2685.6,1.71221]
[1727504578859,1.45661925,2685.7,2685.5,1.33423]
[1727504579056,1.45661925,2685.6,2685.5,1.33423]
[1727504579260,1.89211925,2685.6,2685.5,1.33423]
[1727504579760,1.89211925,2685.6,2685.5,0.962]
[1727504579959,1.89211925,2685.6,2685.5,1.33423]
[1727504580265,1.89211925,2685.6,2685.5,2.67423]
[1727504580563,0.97108464,2685.6,2685.5,2.67423]
[1727504581157,0.97108464,2685.6,2685.5,1.33423]
[1727504581464,0.97108464,2685.6,2685.5,2.67423]
[1727504583373,0.97108464,2685.6,2685.5,3.64997844]
[1727504583662,0.97108464,2685.7,2685.5,3.64997844]
[1727504583963,1.45661925,2685.8,2685.7,0.37221]
[1727504584169,1.4573667,2685.8,2685.7,1.71221]
[1727504584365,1.4573667,2685.8,2685.7,1.34]
[1727504584570,2.31446113,2685.9,2685.7,1.34]
[1727504584770,1.45762702,2685.8,2685.7,1.71221]
[1727504585671,1.45762702,2685.9,2685.7,1.71221]
[1727504586164,1.45762702,2685.9,2685.8,0.42]
[1727504586364,1.45762702,2685.9,2685.8,0.79219]
[1727504588363,2.74245113,2686.0,2685.8,0.79219]
[1727504588565,2.74245113,2686.0,2685.9,1.34]
[1727504588958,2.37027113,2686.0,2685.9,1.71218]
[1727504590866,2.74244113,2686.0,2685.9,1.71218]
[1727504591473,2.74244113,2686.0,2685.9,1.34]
[1727504593261,0.37218,2685.9,2685.8,0.42]
[1727504593569,0.37218,2685.9,2685.8,1.76]
[1727504593570,2.3170962,2685.9,2685.8,1.76]
[1727504593768,0.37218,2685.9,2685.8,1.76]
[1727504598484,1.94517851,2686.0,2685.8,11.4832]
[1727504598682,1.45880523,2685.9,2685.8,7.35937995]
[1727504598988,1.45880523,2686.0,2685.9,0.37218]
[1727504599178,1.45880523,2686.0,2685.9,2.68847627]
[1727504599373,1.45880523,2686.0,2685.9,10.61130842]
[1727504600678,1.45880523,2686.0,2685.9,11.74144344]
[1727504600873,1.45880523,2686.0,2685.9,8.01824344]
[1727504601071,1.45880523,2686.0,2685.9,11.74144344]
[1727504602580,0.97279897,2686.0,2685.9,12.22932515]
[1727504603280,0.97279897,2686.0,2685.9,12.2293361]
[1727504604575,0.97279897,2686.0,2685.9,10.76515812]
[1727504606374,1.45880523,2686.1,2686.0,0.37217]
[1727504606375,0.97279897,2686.1,2686.0,0.37217]
[1727504606580,0.97279897,2686.1,2686.0,2.96639638]
[1727504606778,0.97279897,2686.2,2686.1,0.37215]
[1727504606981,0.97279897,2686.2,2686.1,3.67789597]
[1727504607181,0.97279897,2686.2,2686.1,4.76979853]
[1727504607487,0.97279897,2686.2,2686.1,4.28164719]
[1727504607689,0.97279897,2686.2,2686.1,3.30574597]
[1727504607878,0.97279897,2686.2,2686.1,3.30530059]
[1727504608278,0.97279897,2686.2,2686.1,4.28118452]
[1727504608684,0.97279897,2686.2,2686.1,3.15148393]
[1727504608990,0.97279897,2686.2,2686.1,3.52363393]
[1727504610489,0.97279897,2686.2,2686.1,2.54775]
[1727504611181,0.97279897,2686.2,2686.1,3.52363393]
[1727504611682,0.97279897,2686.3,2686.2,0.37214]
[1727504611883,0.97279897,2686.5,2686.2,3.41908854]
[1727504612081,0.97279897,2686.5,2686.4,1.34]
[1727504612280,1.45880523,2686.6,2686.4,2.68742562]
[1727504612281,0.97279897,2686.6,2686.4,2.68742562]
[1727504612475,0.97279897,2686.6,2686.5,0.8042]
[1727504612476,0.97139353,2686.6,2686.5,0.8042]
[1727504612988,0.97144635,2686.6,2686.5,0.8042]
[1727504614092,0.97144635,2686.7,2686.5,4.78403942]
[1727504614286,0.97118109,2686.7,2686.6,1.34]
[1727504614482,0.9709603,2686.7,2686.6,1.71208]
[1727504614789,0.9709603,2686.7,2686.6,1.34]
[1727504615390,1.3655603,2686.8,2686.6,1.34]
[1727504617594,0.3946,2686.8,2686.6,1.34]
[1727504617795,0.3946,2686.8,2686.6,1.71208]
[1727504619193,1.7564003,2686.9,2686.6,1.71207]
[1727504619194,0.9709603,2686.9,2686.6,1.71207]
[1727504619491,0.9709603,2686.9,2686.8,1.34]
[1727504619694,0.9709603,2686.9,2686.8,2.29]
[1727504619990,1.3430003,2686.9,2686.8,2.29]
[1727504621195,0.37204,2686.9,2686.8,2.29]
[1727504622494,1.4087603,2687.0,2686.8,2.29]
[1727504622693,0.4378,2687.0,2686.9,1.19304]
[1727504622893,0.4378,2687.0,2686.9,5.40231595]
[1727504623191,0.9709603,2687.3,2686.9,5.03027595]
[1727504623390,0.9709603,2687.3,2687.1,1.71201]
[1727504623391,0.80279,2687.3,2687.1,1.71201]
[1727504624689,4.1787603,2687.4,2687.1,1.34]
[1727504624690,4.5507403,2687.4,2687.1,1.34]
[1727504624888,0.4308,2687.3,2687.1,0.37201]
[1727504625087,0.4308,2687.3,2687.0,0.4117]
[1727504625088,0.4308,2687.3,2687.2,1.34]
[1727504625295,0.80279,2687.3,2687.2,1.34]
[1727504626291,0.4308,2687.3,2687.2,1.34]
[1727504636607,0.4308,2687.3,2687.2,2.273]
[1727504639210,0.80279,2687.3,2687.2,1.34]
[1727504639400,0.4308,2687.3,2687.2,2.273]
[1727504643604,0.4308,2687.3,2687.2,2.645]
[1727504644604,0.4308,2687.3,2687.2,2.273]
[1727504644806,0.4308,2687.3,2687.2,2.645]
[1727504645605,0.37202,2687.1,2686.8,0.37205]
[1727504645825,3.57983,2687.0,2686.7,0.80686]
[1727504646010,3.57983,2687.0,2686.6,1.7591]
[1727504646011,0.3955,2686.9,2686.6,0.8261]
[1727504646210,1.19775,2686.8,2686.7,0.933]
[1727504646403,1.19775,2686.8,2686.6,0.4129]
[1727504646715,1.19777,2686.8,2686.7,0.933]
[1727504647010,1.19777,2686.8,2686.7,2.273]
[1727504650515,0.8257,2686.8,2686.7,2.273]
[1727504651716,1.19775,2686.8,2686.7,2.273]
[1727504652313,1.19775,2686.8,2686.7,0.933]
[1727504652515,1.19775,2686.8,2686.7,2.273]
[1727504653325,0.8257,2686.8,2686.7,2.273]
[1727504653913,1.7966603,2686.8,2686.7,2.273]
[1727504654315,0.8257,2686.8,2686.7,2.273]
[1727504654619,0.8257,2686.8,2686.7,2.64507]
[1727504654620,1.7966603,2686.8,2686.7,2.64507]
[1727504654820,1.4022603,2686.8,2686.7,2.273]
[1727504657612,0.9709603,2686.8,2686.7,2.6895]
[1727504657808,0.9709603,2686.8,2686.7,3.1006]
[1727504661127,1.7385103,2686.9,2686.7,3.1006]
[1727504662118,1.7385103,2686.9,2686.8,0.4095]
[1727504666824,0.9709603,2686.9,2686.8,0.78155]
[1727504668131,1.45880523,2686.9,2686.8,0.78155]
[1727504669129,0.97039933,2686.9,2686.8,0.78155]
[1727504674629,0.9707804,2686.9,2686.8,0.78155]
[1727504675334,0.9707804,2686.9,2686.8,4.79559714]
[1727504675724,0.9707804,2686.9,2686.8,8.51719714]
[1727504676129,0.9707804,2687.0,2686.9,0.37204]
[1727504676333,0.9707804,2687.0,2686.9,1.71204]
[1727504677236,0.9707804,2687.1,2687.0,0.37203]
[1727504677436,0.9707804,2687.2,2687.1,0.37201]
[1727504677632,0.9707804,2687.2,2687.1,1.71201]
[1727504678033,0.9707804,2687.2,2687.1,2.91901]
[1727504681736,0.9707804,2687.2,2687.1,2.547]
[1727504681937,0.9707804,2687.2,2687.1,3.84401]
[1727504682526,5.03859523,2687.3,2687.1,3.84401]
[1727504682733,0.97130392,2687.2,2687.1,3.84401]
[1727504683135,1.45880523,2687.2,2687.1,3.84401]
[1727504688641,2.31716851,2687.3,2687.1,3.84401]
[1727504689430,1.94517851,2687.3,2687.2,0.372]
[1727504691148,0.4247,2687.4,2687.3,0.37199]
[1727504691149,2.74184851,2687.4,2687.3,0.37199]
[1727504691443,2.36987851,2687.4,2687.3,1.71199]
[1727504691643,0.4247,2687.4,2687.3,1.71199]
[1727504691944,1.88211641,2687.4,2687.3,1.71199]
[1727504692240,1.88214093,2687.4,2687.3,1.71199]
[1727504692740,1.45744093,2687.4,2687.3,1.71199]
[1727504693437,4.66524093,2687.5,2687.3,1.71199]
[1727504693640,0.97150611,2687.4,2687.3,1.71199]
[1727504694042,0.97150611,2687.4,2687.3,9.37293002]
[1727504694235,4.17930611,2687.5,2687.3,9.37293002]
[1727504694541,4.17930611,2687.5,2687.4,0.37197]
[1727504694848,0.97150611,2687.5,2687.4,8.23937916]
[1727504695036,0.3937,2687.6,2687.4,8.84272478]
[1727504695241,0.3937,2687.6,2687.5,1.759]
[1727504695535,0.3937,2687.6,2687.5,6.27097854]
[1727504695846,0.97150611,2687.8,2687.6,0.37194]
[1727504696041,0.97150611,2687.8,2687.7,2.264]
[1727504696240,0.97150611,2687.8,2687.7,6.40401854]
[1727504697341,0.97150611,2687.9,2687.7,6.40401854]
[1727504697643,0.97150611,2687.9,2687.8,1.34]
[1727504698236,1.45601874,2687.9,2687.8,1.34]
[1727504698631,1.86281874,2688.0,2687.8,1.34]
[1727504698831,1.86281874,2688.0,2687.9,0.4082]
[1727504699037,1.86281874,2688.0,2687.9,4.86577261]
[1727504699232,1.86281874,2688.0,2687.9,5.23767261]
[1727504699233,0.4068,2688.0,2687.9,5.23767261]
[1727504699437,1.37706639,2688.0,2687.9,4.86577261]
[1727504700445,1.37706639,2688.0,2687.9,5.23767261]
[1727504700645,1.37706639,2688.0,2687.9,4.96487261]
[1727504701445,1.79136639,2688.0,2687.9,2.264]
[1727504706342,0.8211,2688.0,2687.9,2.264]
[1727504707042,1.34214639,2688.1,2687.9,2.264]
[1727504707239,0.4244,2688.0,2687.9,2.264]
[1727504708243,0.8474,2688.0,2687.9,2.264]
[1727504709744,1.21929,2688.0,2687.9,1.34]
[1727504709941,1.61909,2688.0,2687.9,2.264]
[1727504710134,1.2472,2688.0,2687.9,1.8921]
[1727504710548,1.61909,2688.0,2687.9,1.34]
[1727504711437,2.58935639,2688.0,2687.9,1.34]
[1727504712237,1.61909,2688.0,2687.9,1.34]
[1727504713147,0.8242,2688.0,2687.9,1.34]
[1727504713340,0.4244,2688.0,2687.9,1.7119]
[1727504713541,0.4244,2688.0,2687.9,2.5186]
[1727504719057,0.4244,2688.0,2687.9,3.4426]
[1727504719556,0.4244,2688.0,2687.9,3.0707]
[1727504719746,0.4244,2688.0,2687.9,3.4426]
[1727504720048,0.4244,2688.0,2687.9,3.0707]
[1727504720248,11.4844,2688.0,2686.9,0.97531562]
[1727504720555,0.37199,2687.3,2687.2,1.34]
[1727504720755,1.34196603,2687.3,2687.2,1.34]
[1727504721055,2.52356603,2687.3,2687.2,1.34]
[1727504721452,3.0085979,2687.3,2687.2,1.34]
[1727504722444,3.0085979,2687.3,2686.6,3.2078]
[1727504722445,2.6366079,2687.3,2686.6,3.2078]
[1727504722645,1.34225978,2687.0,2686.7,0.7934]
[1727504722852,0.97021978,2686.9,2686.7,1.7164]
[1727504723048,0.97021978,2686.9,2686.8,1.71205]
[1727504723245,1.4550079,2687.0,2686.8,1.34]
[1727504723246,0.97021978,2687.0,2686.8,1.34]
[1727504723451,0.97021978,2687.1,2686.8,5.91941864]
[1727504723745,1.4550079,2687.2,2687.0,1.34]
[1727504724359,0.97009196,2687.1,2687.0,1.34]
[1727504725053,0.97009196,2687.1,2686.9,0.924]
[1727504725360,0.96997296,2687.1,2687.0,1.34]
[1727504728466,0.37201,2687.2,2687.0,1.34]
[1727504730358,0.37201,2687.2,2687.1,0.3929]
[1727504731858,1.34198296,2687.2,2687.1,0.3929]
[1727504732262,0.37201,2687.2,2687.1,0.3929]
[1727504732560,2.15157296,2687.3,2687.1,0.3929]
[1727504732561,2.52356296,2687.3,2687.1,0.3929]
[1727504732867,2.52356296,2687.3,2687.2,1.34]
[1727504737560,1.74946296,2687.3,2687.2,1.34]
[1727504738266,0.77949,2687.3,2687.2,1.34]
[1727504741664,1.74946296,2687.3,2687.2,1.34]
[1727504741872,0.77949,2687.3,2687.2,1.34]
[1727504742368,1.74946296,2687.3,2687.2,1.34]
[1727504742771,0.77949,2687.3,2687.2,1.34]
[1727504743471,2.2344979,2687.3,2687.2,1.34]
[1727504746967,0.77949,2687.3,2687.2,1.34]
[1727504747166,2.2344979,2687.3,2687.2,1.34]
[1727504751566,4.95625127,2687.3,2687.2,1.34]
[1727504753370,3.98729,2687.3,2687.2,1.34]
[1727504754174,5.4422979,2687.3,2687.2,1.34]
[1727504758483,3.98729,2687.3,2687.2,1.34]
[1727504758680,3.98729,2687.3,2687.1,0.7749]
[1727504758681,0.372,2687.2,2687.1,0.7749]
[1727504758879,1.82621352,2687.2,2687.1,2.1149]
[1727504759383,1.82621352,2687.2,2687.1,2.48691]
[1727504760284,0.372,2687.2,2687.1,2.48691]
[1727504760480,1.82691431,2687.2,2687.1,2.1149]
[1727504760680,0.372,2687.2,2687.1,2.1149]
[1727504761677,2.31201053,2687.2,2687.1,2.1149]
[1727504763184,3.6153,2687.3,2687.1,2.48691]
[1727504763185,2.31200053,2687.3,2687.1,2.48691]
[1727504763384,5.14781053,2687.3,2687.2,0.372]
[1727504763587,1.94001053,2687.4,2687.1,6.38939862]
[1727504763884,1.45645111,2687.3,2687.1,5.04939862]
[1727504764072,0.97098095,2687.2,2687.1,5.42140862]
[1727504764385,1.45645111,2687.2,2687.1,5.42140862]
[1727504764883,1.45645111,2687.2,2687.1,5.04939862]
[1727504765184,2.31201053,2687.2,2687.1,3.0379]
[1727504765488,0.372,2687.2,2687.1,3.0379]
[1727504765681,2.31626624,2687.2,2687.1,3.0379]
[1727504766188,0.372,2687.2,2687.1,3.0379]
[1727504766486,2.79156302,2687.2,2687.1,3.0379]
[1727504767685,2.79156302,2687.2,2687.1,2.1149]
[1727504767873,2.41956302,2687.2,2687.1,2.1149]
[1727504768285,3.17746302,2687.3,2687.1,2.1149]
[1727504768581,2.79156302,2687.2,2687.1,2.1149]
[1727504769183,0.372,2687.2,2687.1,2.1149]
[1727504769384,2.79156302,2687.2,2687.1,2.1149]
[1727504770690,0.37203,2687.0,2686.9,4.18311562]
[1727504771076,2.80391834,2687.0,2686.9,3.2078]
[1727504771285,0.37204,2686.9,2686.8,0.97531562]
[1727504771591,0.37204,2686.9,2686.7,3.10591562]
[1727504771592,0.37205,2686.8,2686.7,3.10591562]
[1727504771794,0.37205,2686.8,2686.7,2.1306]
[1727504771980,2.43188834,2686.9,2686.7,2.1306]
[1727504772888,1.94476252,2686.8,2686.7,2.1306]
[1727504773090,2.80393834,2686.9,2686.7,2.50267]
[1727504773290,1.94477668,2686.8,2686.7,2.50267]
[1727504773684,2.80393834,2686.8,2686.7,2.1306]
[1727504774079,2.43188834,2686.8,2686.7,2.1306]
[1727504774593,2.80393834,2686.8,2686.7,2.1306]
[1727504775089,2.80393834,2686.9,2686.7,2.1306]
[1727504775389,2.80195333,2686.9,2686.8,1.34]
[1727504775587,2.80195049,2686.9,2686.8,1.34]
[1727504775891,0.37205,2686.9,2686.8,1.34]
[1727504776386,2.80164069,2686.9,2686.8,1.34]
[1727504776779,3.9695,2687.0,2686.8,1.34]
[1727504777089,2.42951402,2686.9,2686.8,1.34]
[1727504777385,6.38785402,2687.0,2686.8,1.34]
[1727504780687,1.94320468,2686.9,2686.8,1.34]
[1727504781087,5.90154468,2687.0,2686.8,1.34]
[1727504781289,1.94320468,2686.9,2686.8,1.34]
[1727504781793,5.90154468,2687.0,2686.8,1.34]
[1727504782184,1.94320468,2686.9,2686.8,1.34]
[1727504782388,5.15100468,2687.0,2686.9,0.37204]
[1727504783083,3.2078,2687.0,2686.9,0.37204]
[1727504783688,5.15100468,2687.0,2686.9,0.37204]
[1727504784286,3.2078,2687.0,2686.9,0.37204]
[1727504785588,1.94320468,2687.1,2687.0,0.37203]
[1727504785785,1.94320468,2687.1,2687.0,1.71203]
[1727504785993,2.31750468,2687.2,2687.1,0.37201]
[1727504786191,2.31750468,2687.2,2687.1,1.15611]
[1727504786393,2.31750468,2687.2,2687.1,1.56431]
[1727504786995,1.94320468,2687.2,2687.1,1.56431]
[1727504787495,2.31520468,2687.2,2687.1,1.1923]
[1727504788003,0.372,2687.2,2687.1,1.1923]
[1727504788492,0.37202,2687.1,2686.9,1.34]
[1727504788689,2.31530072,2687.1,2686.9,1.34]
[1727504788900,0.75043,2687.0,2686.9,1.34]
[1727504789702,0.75043,2687.0,2686.8,0.8029]
[1727504789703,3.17994402,2687.0,2686.8,0.8029]
[1727504789906,1.94322045,2686.9,2686.8,0.8029]
[1727504790299,1.94322045,2686.9,2686.8,1.17495]